fUSD/lending_fUSD_20260622
["ID","MTS","AMOUNT","RATE_DAILY","PERIOD"]
[425975116,1782061902000,-500.0,0.00028493,2]
[425975077,1782061902000,-670.57,0.00028493,2]
[425975101,1782061902000,-3531.97,0.00028493,2]
[425975099,1782061902000,-500.0,0.00028493,2]
[425975107,1782061902000,-4605.85,0.00028493,2]
[425975098,1782061902000,-1825.32,0.00028493,2]
[425975076,1782061902000,-500.0,0.00028493,2]
[425975100,1782061902000,-500.0,0.00028493,2]
[425975081,1782061902000,-709.73,0.00028493,2]
[425975082,1782061902000,-501.49,0.00028493,2]
[425975079,1782061902000,-2013.27,0.00028493,2]
[425975080,1782061902000,-1483.1,0.00028493,2]
[425975083,1782061902000,-4451.14,0.00028493,2]
[425975085,1782061902000,-500.0,0.00028493,2]
[425975086,1782061902000,-500.0,0.00028493,2]
[425975091,1782061902000,-500.0,0.00028493,2]
[425975084,1782061902000,-500.0,0.00028493,2]
[425975095,1782061902000,-8230.87,0.00028493,2]
[425975087,1782061902000,-500.0,0.00028493,2]
[425975092,1782061902000,-616.3,0.00028493,2]
[425975093,1782061902000,-500.0,0.00028493,2]
[425975090,1782061902000,-500.0,0.00028493,2]
[425975089,1782061902000,-1823.11,0.00028493,2]
[425975094,1782061902000,-4815.29,0.00028493,2]
[425975088,1782061902000,-2000.0,0.00028493,2]
[425975096,1782061902000,-500.0,0.00028493,2]
[425975151,1782061903000,-1334.72,0.0002862,2]
[425975153,1782061903000,-675.0,0.0002863,2]
[425975152,1782061903000,-2370.42,0.0002863,30]
[425975150,1782061903000,-6081.0,0.00028579,2]
[425975146,1782061903000,-1276.0,0.00028579,2]
[425975148,1782061903000,-1229.0,0.00028579,2]
[425975147,1782061903000,-383.0,0.00028579,2]
[425975154,1782061903000,-811.1,0.0002863,30]
[425975145,1782061903000,-1360.0,0.00028579,2]
[425975155,1782061903000,-1298.69,0.0002863,30]
[425975164,1782061903000,-1439.74,0.00028653,7]
[425975158,1782061903000,-1439.74,0.0002863,30]
[425975157,1782061903000,-811.37,0.0002863,30]
[425975159,1782061903000,-2698.5715251,0.0002865,2]
[425975161,1782061903000,-811.1,0.00028653,7]
[425975160,1782061903000,-2370.42,0.00028653,7]
[425975162,1782061903000,-1298.69,0.00028653,7]
[425975165,1782061903000,-500.0,0.00028658,2]
[425975163,1782061903000,-811.37,0.00028653,7]
[425975141,1782061903000,-150.0,0.000285,2]
[425975156,1782061903000,-240.12,0.0002863,2]
[425975144,1782061903000,-3560.0,0.00028579,2]
[425975123,1782061903000,-255.3633247,0.00028493,2]
[425975149,1782061903000,-3647.0,0.00028579,2]
[425975166,1782061903000,-240.12,0.00028661,7]
[425975120,1782061903000,-500.0,0.00028493,2]
[425975124,1782061903000,-543.15,0.00028493,2]
[425975129,1782061903000,-4853.13,0.00028493,2]
[425975122,1782061903000,-500.0,0.00028493,2]
[425975128,1782061903000,-781.73,0.00028493,2]
[425975126,1782061903000,-6629.64,0.00028493,2]
[425975127,1782061903000,-1025.57,0.00028493,2]
[425975125,1782061903000,-500.0,0.00028493,2]
[425975121,1782061903000,-500.0,0.00028493,2]
[425975131,1782061903000,-500.0,0.00028493,2]
[425975130,1782061903000,-500.0,0.00028493,2]
[425975132,1782061903000,-500.0,0.00028493,2]
[425975134,1782061903000,-186.193351,0.00028496,10]
[425975136,1782061903000,-10000.0,0.000285,2]
[425975135,1782061903000,-184350.47460741,0.000285,2]
[425975137,1782061903000,-2328.59,0.000285,7]
[425975138,1782061903000,-9510.04,0.000285,7]
[425975139,1782061903000,-9243.88,0.000285,7]
[425975140,1782061903000,-41650.57,0.000285,7]
[425975142,1782061903000,-175.0,0.000285,2]
[425975143,1782061903000,-644.79446245,0.00028518,2]
[425975168,1782061903000,-622.8,0.0002871,2]
[425975133,1782061903000,-500.0,0.00028493,2]
[425975169,1782061903000,-259.5,0.0002871,2]
[425975191,1782061903000,-500.0,0.00028767,2]
[425975194,1782061903000,-500.0,0.00028767,2]
[425975192,1782061903000,-270.46056362,0.00028767,2]
[425975199,1782061903000,-500.0,0.00028767,2]
[425975200,1782061903000,-500.0,0.00028767,2]
[425975201,1782061903000,-500.0,0.00028767,2]
[425975198,1782061903000,-2687.78,0.00028767,2]
[425975205,1782061903000,-531.49599608,0.00028767,2]
[425975215,1782061903000,-500.0,0.00028767,2]
[425975204,1782061903000,-500.0,0.00028767,2]
[425975206,1782061903000,-536.66,0.00028767,2]
[425975202,1782061903000,-1000.0,0.00028767,7]
[425975203,1782061903000,-500.0,0.00028767,2]
[425975207,1782061903000,-500.0,0.00028767,2]
[425975209,1782061903000,-500.0,0.00028767,2]
[425975208,1782061903000,-500.0,0.00028767,2]
[425975210,1782061903000,-631.9,0.00028767,2]
[425975213,1782061903000,-500.0,0.00028767,2]
[425975211,1782061903000,-508.36,0.00028767,2]
[425975212,1782061903000,-500.0,0.00028767,2]
[425975214,1782061903000,-500.0,0.00028767,2]
[425975196,1782061903000,-500.0,0.00028767,2]
[425975197,1782061903000,-500.0,0.00028767,2]
[425975167,1782061903000,-240.12,0.00028693,30]
[425975189,1782061903000,-500.0,0.00028767,2]
[425975195,1782061903000,-579.02,0.00028767,2]
[425975170,1782061903000,-9014.5393517,0.00028712,2]
[425975171,1782061903000,-300.0,0.0002872,30]
[425975175,1782061903000,-347.36508645,0.00028766,2]
[425975173,1782061903000,-240.12,0.00028725,2]
[425975174,1782061903000,-240.12,0.00028756,7]
[425975172,1782061903000,-300.0,0.0002872,30]
[425975186,1782061903000,-500.0,0.00028767,2]
[425975178,1782061903000,-500.0,0.00028767,2]
[425975179,1782061903000,-500.0,0.00028767,2]
[425975176,1782061903000,-501.82455083,0.00028767,2]
[425975181,1782061903000,-500.0,0.00028767,2]
[425975183,1782061903000,-500.0,0.00028767,2]
[425975180,1782061903000,-500.0,0.00028767,2]
[425975177,1782061903000,-43950.135166,0.00028767,2]
[425975193,1782061903000,-500.0,0.00028767,2]
[425975182,1782061903000,-500.0,0.00028767,2]
[425975184,1782061903000,-500.0,0.00028767,2]
[425975187,1782061903000,-500.0,0.00028767,2]
[425975188,1782061903000,-500.0,0.00028767,2]
[425975190,1782061903000,-500.0,0.00028767,2]
[425975185,1782061903000,-576.16,0.00028767,2]
[425975253,1782061904000,-401.92435311,0.00028767,2]
[425975247,1782061904000,-597.73,0.00028767,2]
[425975241,1782061904000,-500.0,0.00028767,2]
[425975245,1782061904000,-500.0,0.00028767,2]
[425975244,1782061904000,-1267.5,0.00028767,2]
[425975243,1782061904000,-500.0,0.00028767,2]
[425975240,1782061904000,-500.0,0.00028767,2]
[425975252,1782061904000,-500.0,0.00028767,2]
[425975242,1782061904000,-500.0,0.00028767,2]
[425975251,1782061904000,-555.93,0.00028767,2]
[425975271,1782061904000,-529.62,0.00028767,2]
[425975250,1782061904000,-500.0,0.00028767,2]
[425975256,1782061904000,-500.0,0.00028767,2]
[425975258,1782061904000,-526.65,0.00028767,2]
[425975254,1782061904000,-500.0,0.00028767,2]
[425975255,1782061904000,-500.0,0.00028767,2]
[425975249,1782061904000,-500.0,0.00028767,2]
[425975248,1782061904000,-500.0,0.00028767,2]
[425975270,1782061904000,-546.87303852,0.00028767,2]
[425975260,1782061904000,-540.54,0.00028767,2]
[425975239,1782061904000,-553.48,0.00028767,2]
[425975257,1782061904000,-527.94,0.00028767,2]
[425975237,1782061904000,-500.0,0.00028767,2]
[425975229,1782061904000,-975.39,0.00028767,2]
[425975238,1782061904000,-500.0,0.00028767,2]
[425975264,1782061904000,-500.0,0.00028767,2]
[425975217,1782061904000,-1880.63,0.00028767,2]
[425975216,1782061904000,-500.0,0.00028767,2]
[425975218,1782061904000,-1266.12,0.00028767,2]
[425975224,1782061904000,-500.0,0.00028767,2]
[425975225,1782061904000,-842.29,0.00028767,2]
[425975222,1782061904000,-1512.27,0.00028767,2]
[425975219,1782061904000,-645.4,0.00028767,2]
[425975227,1782061904000,-544.8,0.00028767,2]
[425975221,1782061904000,-1217.07,0.00028767,2]
[425975220,1782061904000,-1160.03,0.00028767,2]
[425975223,1782061904000,-500.0,0.00028767,2]
[425975226,1782061904000,-500.0,0.00028767,2]
[425975231,1782061904000,-500.0,0.00028767,2]
[425975228,1782061904000,-643.15,0.00028767,2]
[425975230,1782061904000,-651.64,0.00028767,2]
[425975232,1782061904000,-500.0,0.00028767,2]
[425975235,1782061904000,-500.0,0.00028767,2]
[425975234,1782061904000,-923.93,0.00028767,2]
[425975236,1782061904000,-1369.32,0.00028767,2]
[425975233,1782061904000,-500.0,0.00028767,2]
[425975246,1782061904000,-500.0,0.00028767,2]
[425975261,1782061904000,-500.0,0.00028767,2]
[425975263,1782061904000,-610.79,0.00028767,2]
[425975262,1782061904000,-500.0,0.00028767,2]
[425975295,1782061904000,-3422.69,0.00028767,2]
[425975292,1782061904000,-500.0,0.00028767,2]
[425975294,1782061904000,-500.0,0.00028767,2]
[425975291,1782061904000,-506.54,0.00028767,2]
[425975296,1782061904000,-766.03,0.00028767,2]
[425975298,1782061904000,-500.0,0.00028767,2]
[425975297,1782061904000,-500.0,0.00028767,2]
[425975302,1782061904000,-549.42,0.00028767,2]
[425975299,1782061904000,-500.0,0.00028767,2]
[425975300,1782061904000,-500.0,0.00028767,2]
[425975293,1782061904000,-534.07,0.00028767,2]
[425975301,1782061904000,-500.0,0.00028767,2]
[425975303,1782061904000,-500.0,0.00028767,2]
[425975306,1782061904000,-500.0,0.00028767,2]
[425975304,1782061904000,-500.0,0.00028767,2]
[425975308,1782061904000,-500.0,0.00028767,2]
[425975307,1782061904000,-500.0,0.00028767,2]
[425975312,1782061904000,-500.0,0.00028767,2]
[425975313,1782061904000,-500.0,0.00028767,2]
[425975259,1782061904000,-500.0,0.00028767,2]
[425975311,1782061904000,-500.0,0.00028767,2]
[425975310,1782061904000,-500.0,0.00028767,2]
[425975305,1782061904000,-500.0,0.00028767,2]
[425975290,1782061904000,-819.78,0.00028767,2]
[425975309,1782061904000,-500.0,0.00028767,2]
[425975287,1782061904000,-500.0,0.00028767,2]
[425975289,1782061904000,-562.86,0.00028767,2]
[425975266,1782061904000,-500.0,0.00028767,2]
[425975267,1782061904000,-500.0,0.00028767,2]
[425975268,1782061904000,-500.0,0.00028767,2]
[425975269,1782061904000,-500.0,0.00028767,2]
[425975272,1782061904000,-500.0,0.00028767,2]
[425975274,1782061904000,-500.0,0.00028767,2]
[425975275,1782061904000,-591.28,0.00028767,2]
[425975273,1782061904000,-500.0,0.00028767,2]
[425975276,1782061904000,-500.0,0.00028767,2]
[425975265,1782061904000,-902.56,0.00028767,2]
[425975282,1782061904000,-598.59,0.00028767,2]
[425975278,1782061904000,-500.0,0.00028767,2]
[425975277,1782061904000,-560.08,0.00028767,2]
[425975279,1782061904000,-597.07,0.00028767,2]
[425975280,1782061904000,-500.0,0.00028767,2]
[425975281,1782061904000,-500.0,0.00028767,2]
[425975284,1782061904000,-500.0,0.00028767,2]
[425975286,1782061904000,-500.0,0.00028767,2]
[425975285,1782061904000,-500.0,0.00028767,2]
[425975288,1782061904000,-972.04,0.00028767,2]
[425975283,1782061904000,-298.53,0.00028767,2]
[425975345,1782061905000,-952.51,0.00028767,2]
[425975343,1782061905000,-1244.82,0.00028767,2]
[425975341,1782061905000,-500.0,0.00028767,2]
[425975340,1782061905000,-500.0,0.00028767,2]
[425975337,1782061905000,-454.19796267,0.00028767,2]
[425975336,1782061905000,-161.00287,0.00028767,2]
[425975339,1782061905000,-500.0,0.00028767,2]
[425975344,1782061905000,-698.8,0.00028767,2]
[425975342,1782061905000,-500.0,0.00028767,2]
[425975348,1782061905000,-500.0,0.00028767,2]
[425975351,1782061905000,-500.0,0.00028767,2]
[425975350,1782061905000,-588.39,0.00028767,2]
[425975349,1782061905000,-500.0,0.00028767,2]
[425975353,1782061905000,-500.0,0.00028767,2]
[425975355,1782061905000,-2678.53,0.00028767,2]
[425975352,1782061905000,-792.91,0.00028767,2]
[425975358,1782061905000,-678.71,0.00028767,2]
[425975356,1782061905000,-640.68,0.00028767,2]
[425975338,1782061905000,-500.0,0.00028767,2]
[425975347,1782061905000,-500.0,0.00028767,2]
[425975333,1782061905000,-500.0,0.00028767,2]
[425975321,1782061905000,-741.63,0.00028767,2]
[425975334,1782061905000,-1423.29,0.00028767,2]
[425975357,1782061905000,-500.0,0.00028767,2]
[425975319,1782061905000,-500.0,0.00028767,2]
[425975318,1782061905000,-500.0,0.00028767,2]
[425975320,1782061905000,-500.0,0.00028767,2]
[425975314,1782061905000,-500.0,0.00028767,2]
[425975315,1782061905000,-847.94,0.00028767,2]
[425975316,1782061905000,-500.0,0.00028767,2]
[425975317,1782061905000,-605.79624875,0.00028767,2]
[425975330,1782061905000,-663.71,0.00028767,2]
[425975329,1782061905000,-500.0,0.00028767,2]
[425975328,1782061905000,-500.0,0.00028767,2]
[425975322,1782061905000,-385.93139769,0.00028767,2]
[425975323,1782061905000,-831.45,0.00028767,2]
[425975324,1782061905000,-535.03,0.00028767,2]
[425975325,1782061905000,-500.0,0.00028767,2]
[425975326,1782061905000,-500.0,0.00028767,2]
[425975327,1782061905000,-534.55,0.00028767,2]
[425975331,1782061905000,-670.78,0.00028767,2]
[425975332,1782061905000,-567.5,0.00028767,2]
[425975335,1782061905000,-500.0,0.00028767,2]
[425975359,1782061905000,-508.83,0.00028767,2]
[425975346,1782061905000,-620.22,0.00028767,2]
[425975361,1782061905000,-500.0,0.00028767,2]
[425975384,1782061905000,-500.0,0.00028767,2]
[425975385,1782061905000,-1092.63,0.00028767,2]
[425975396,1782061905000,-500.0,0.00028767,2]
[425975395,1782061905000,-500.0,0.00028767,2]
[425975386,1782061905000,-500.0,0.00028767,2]
[425975387,1782061905000,-500.0,0.00028767,2]
[425975388,1782061905000,-540.14,0.00028767,2]
[425975389,1782061905000,-500.0,0.00028767,2]
[425975394,1782061905000,-500.0,0.00028767,2]
[425975382,1782061905000,-500.0,0.00028767,2]
[425975391,1782061905000,-500.0,0.00028767,2]
[425975390,1782061905000,-500.0,0.00028767,2]
[425975398,1782061905000,-500.0,0.00028767,2]
[425975400,1782061905000,-500.0,0.00028767,2]
[425975399,1782061905000,-3987.32,0.00028767,2]
[425975397,1782061905000,-500.0,0.00028767,2]
[425975401,1782061905000,-654.24,0.00028767,2]
[425975404,1782061905000,-500.0,0.00028767,2]
[425975403,1782061905000,-500.0,0.00028767,2]
[425975354,1782061905000,-500.0,0.00028767,2]
[425975393,1782061905000,-211.752289,0.00028767,2]
[425975383,1782061905000,-803.29,0.00028767,2]
[425975392,1782061905000,-500.0,0.00028767,2]
[425975375,1782061905000,-500.0,0.00028767,2]
[425975360,1782061905000,-500.0,0.00028767,2]
[425975378,1782061905000,-500.0,0.00028767,2]
[425975362,1782061905000,-500.0,0.00028767,2]
[425975364,1782061905000,-1511.74,0.00028767,2]
[425975365,1782061905000,-519.3,0.00028767,2]
[425975366,1782061905000,-893.03,0.00028767,2]
[425975367,1782061905000,-500.0,0.00028767,2]
[425975370,1782061905000,-152.14656906,0.00028767,2]
[425975371,1782061905000,-690.91,0.00028767,2]
[425975368,1782061905000,-1318.07,0.00028767,2]
[425975363,1782061905000,-500.0,0.00028767,2]
[425975372,1782061905000,-500.0,0.00028767,2]
[425975402,1782061905000,-500.0,0.00028767,2]
[425975369,1782061905000,-500.0,0.00028767,2]
[425975374,1782061905000,-500.0,0.00028767,2]
[425975377,1782061905000,-800.23,0.00028767,2]
[425975381,1782061905000,-500.0,0.00028767,2]
[425975376,1782061905000,-500.0,0.00028767,2]
[425975380,1782061905000,-594.9,0.00028767,2]
[425975379,1782061905000,-500.0,0.00028767,2]
[425975373,1782061905000,-500.0,0.00028767,2]
[425975441,1782061906000,-500.0,0.00028767,2]
[425975438,1782061906000,-1130.66,0.00028767,2]
[425975435,1782061906000,-500.0,0.00028767,2]
[425975444,1782061906000,-472.5707891,0.00028767,2]
[425975439,1782061906000,-500.0,0.00028767,2]
[425975442,1782061906000,-6753.8,0.00028767,2]
[425975443,1782061906000,-500.0,0.00028767,2]
[425975434,1782061906000,-500.0,0.00028767,2]
[425975436,1782061906000,-500.0,0.00028767,2]
[425975440,1782061906000,-500.0,0.00028767,2]
[425975437,1782061906000,-572.65,0.00028767,2]
[425975446,1782061906000,-500.0,0.00028767,2]
[425975456,1782061906000,-5923.33,0.00028767,2]
[425975445,1782061906000,-500.0,0.00028767,2]
[425975448,1782061906000,-500.0,0.00028767,2]
[425975455,1782061906000,-4889.99,0.00028767,2]
[425975454,1782061906000,-500.0,0.00028767,2]
[425975453,1782061906000,-500.0,0.00028767,2]
[425975449,1782061906000,-2712.86,0.00028767,2]
[425975450,1782061906000,-500.0,0.00028767,2]
[425975452,1782061906000,-873.86,0.00028767,2]
[425975457,1782061906000,-741.05,0.00028767,2]
[425975458,1782061906000,-500.0,0.00028767,2]
[425975433,1782061906000,-502.71029547,0.00028767,2]
[425975447,1782061906000,-3926.18,0.00028767,2]
[425975427,1782061906000,-500.0,0.00028767,2]
[425975418,1782061906000,-605.3865617,0.00028767,2]
[425975430,1782061906000,-500.0,0.00028767,2]
[425975408,1782061906000,-500.0,0.00028767,2]
[425975405,1782061906000,-500.0,0.00028767,2]
[425975407,1782061906000,-602.92,0.00028767,2]
[425975406,1782061906000,-500.0,0.00028767,2]
[425975410,1782061906000,-5224.19,0.00028767,2]
[425975460,1782061906000,-732.43,0.00028767,2]
[425975412,1782061906000,-392.95391784,0.00028767,2]
[425975411,1782061906000,-500.0,0.00028767,2]
[425975419,1782061906000,-500.0,0.00028767,2]
[425975409,1782061906000,-5864.59,0.00028767,2]
[425975413,1782061906000,-500.0,0.00028767,2]
[425975414,1782061906000,-500.0,0.00028767,2]
[425975415,1782061906000,-500.0,0.00028767,2]
[425975416,1782061906000,-500.0,0.00028767,2]
[425975417,1782061906000,-1118.18,0.00028767,2]
[425975431,1782061906000,-500.0,0.00028767,2]
[425975421,1782061906000,-1056.03,0.00028767,2]
[425975432,1782061906000,-500.0,0.00028767,2]
[425975420,1782061906000,-500.0,0.00028767,2]
[425975429,1782061906000,-500.0,0.00028767,2]
[425975426,1782061906000,-500.0,0.00028767,2]
[425975424,1782061906000,-1000.0,0.00028767,2]
[425975428,1782061906000,-500.0,0.00028767,2]
[425975422,1782061906000,-500.0,0.00028767,2]
[425975423,1782061906000,-500.0,0.00028767,2]
[425975425,1782061906000,-1016.84,0.00028767,2]
[425975466,1782061906000,-500.0,0.00028767,2]
[425975451,1782061906000,-500.0,0.00028767,2]
[425975463,1782061906000,-500.0,0.00028767,2]
[425975488,1782061906000,-500.0,0.00028767,2]
[425975492,1782061906000,-500.0,0.00028767,2]
[425975493,1782061906000,-500.0,0.00028767,2]
[425975496,1782061906000,-913.85,0.00028767,2]
[425975494,1782061906000,-839.88,0.00028767,2]
[425975497,1782061906000,-500.0,0.00028767,2]
[425975498,1782061906000,-9631.81,0.00028767,2]
[425975495,1782061906000,-500.0,0.00028767,2]
[425975500,1782061906000,-4501.1,0.00028767,2]
[425975507,1782061906000,-8104.14,0.00028767,2]
[425975505,1782061906000,-500.0,0.00028767,2]
[425975506,1782061906000,-500.0,0.00028767,2]
[425975501,1782061906000,-1087.92,0.00028767,2]
[425975503,1782061906000,-1094.84,0.00028767,2]
[425975504,1782061906000,-500.0,0.00028767,2]
[425975510,1782061906000,-3370.08,0.00028767,2]
[425975508,1782061906000,-3218.44,0.00028767,2]
[425975509,1782061906000,-9092.8,0.00028767,2]
[425975512,1782061906000,-544.71,0.00028767,2]
[425975514,1782061906000,-8949.23,0.00028767,2]
[425975511,1782061906000,-946.16,0.00028767,2]
[425975513,1782061906000,-500.0,0.00028767,2]
[425975516,1782061906000,-500.0,0.00028767,2]
[425975515,1782061906000,-6582.69,0.00028767,2]
[425975459,1782061906000,-500.0,0.00028767,2]
[425975490,1782061906000,-500.0,0.00028767,2]
[425975491,1782061906000,-4107.48,0.00028767,2]
[425975502,1782061906000,-500.0,0.00028767,2]
[425975499,1782061906000,-500.0,0.00028767,2]
[425975461,1782061906000,-541.15,0.00028767,2]
[425975489,1782061906000,-4867.06,0.00028767,2]
[425975464,1782061906000,-500.0,0.00028767,2]
[425975462,1782061906000,-1048.26,0.00028767,2]
[425975465,1782061906000,-500.0,0.00028767,2]
[425975467,1782061906000,-500.0,0.00028767,2]
[425975468,1782061906000,-500.0,0.00028767,2]
[425975469,1782061906000,-4756.56,0.00028767,2]
[425975472,1782061906000,-12052.2,0.00028767,2]
[425975474,1782061906000,-352.3431888,0.00028767,2]
[425975473,1782061906000,-500.0,0.00028767,2]
[425975471,1782061906000,-605.17,0.00028767,2]
[425975475,1782061906000,-500.0,0.00028767,2]
[425975470,1782061906000,-6410.69,0.00028767,2]
[425975481,1782061906000,-1547.68,0.00028767,2]
[425975487,1782061906000,-500.0,0.00028767,2]
[425975476,1782061906000,-4173.31,0.00028767,2]
[425975480,1782061906000,-822.03,0.00028767,2]
[425975486,1782061906000,-9055.22,0.00028767,2]
[425975485,1782061906000,-500.0,0.00028767,2]
[425975484,1782061906000,-547.74,0.00028767,2]
[425975478,1782061906000,-8253.7,0.00028767,2]
[425975482,1782061906000,-500.0,0.00028767,2]
[425975479,1782061906000,-500.0,0.00028767,2]
[425975477,1782061906000,-2146.6,0.00028767,2]
[425975483,1782061906000,-500.0,0.00028767,2]
[425975556,1782061907000,-629.28,0.00028767,2]
[425975553,1782061907000,-3874.09,0.00028767,2]
[425975557,1782061907000,-500.0,0.00028767,2]
[425975558,1782061907000,-500.0,0.00028767,2]
[425975548,1782061907000,-15060.49,0.00028767,2]
[425975554,1782061907000,-6683.71,0.00028767,2]
[425975552,1782061907000,-4131.31,0.00028767,2]
[425975559,1782061907000,-500.0,0.00028767,2]
[425975551,1782061907000,-500.0,0.00028767,2]
[425975549,1782061907000,-500.0,0.00028767,2]
[425975561,1782061907000,-785.35,0.00028767,2]
[425975555,1782061907000,-538.42,0.00028767,2]
[425975560,1782061907000,-500.0,0.00028767,2]
[425975573,1782061907000,-501.49,0.00028767,2]
[425975568,1782061907000,-670.57,0.00028767,2]
[425975564,1782061907000,-500.0,0.00028767,2]
[425975569,1782061907000,-500.0,0.00028767,2]
[425975570,1782061907000,-2013.27,0.00028767,2]
[425975571,1782061907000,-1483.1,0.00028767,2]
[425975562,1782061907000,-213.34747785,0.00028767,2]
[425975567,1782061907000,-500.0,0.00028767,2]
[425975565,1782061907000,-500.0,0.00028767,2]
[425975566,1782061907000,-500.0,0.00028767,2]
[425975572,1782061907000,-709.73,0.00028767,2]
[425975574,1782061907000,-4451.14,0.00028767,2]
[425975547,1782061907000,-650.16,0.00028767,2]
[425975563,1782061907000,-853.42,0.00028767,2]
[425975541,1782061907000,-500.0,0.00028767,2]
[425975522,1782061907000,-6489.37,0.00028767,2]
[425975545,1782061907000,-742.97,0.00028767,2]
[425975582,1782061907000,-616.3,0.00028767,2]
[425975520,1782061907000,-500.0,0.00028767,2]
[425975521,1782061907000,-3434.42,0.00028767,2]
[425975517,1782061907000,-826.36,0.00028767,2]
[425975519,1782061907000,-4428.27,0.00028767,2]
[425975518,1782061907000,-500.0,0.00028767,2]
[425975523,1782061907000,-500.0,0.00028767,2]
[425975525,1782061907000,-500.0,0.00028767,2]
[425975528,1782061907000,-8108.8,0.00028767,2]
[425975524,1782061907000,-500.0,0.00028767,2]
[425975526,1782061907000,-6468.05,0.00028767,2]
[425975534,1782061907000,-500.0,0.00028767,2]
[425975530,1782061907000,-272.01582034,0.00028767,2]
[425975529,1782061907000,-500.0,0.00028767,2]
[425975533,1782061907000,-2478.59,0.00028767,2]
[425975527,1782061907000,-500.0,0.00028767,2]
[425975532,1782061907000,-162.0438566,0.00028767,2]
[425975531,1782061907000,-763.6,0.00028767,2]
[425975536,1782061907000,-514.73,0.00028767,2]
[425975535,1782061907000,-500.0,0.00028767,2]
[425975546,1782061907000,-631.38,0.00028767,2]
[425975537,1782061907000,-500.0,0.00028767,2]
[425975538,1782061907000,-3418.67,0.00028767,2]
[425975539,1782061907000,-8432.29,0.00028767,2]
[425975542,1782061907000,-981.05,0.00028767,2]
[425975543,1782061907000,-10460.79,0.00028767,2]
[425975540,1782061907000,-10410.98,0.00028767,2]
[425975544,1782061907000,-500.0,0.00028767,2]
[425975583,1782061907000,-500.0,0.00028767,2]
[425975550,1782061907000,-6462.79,0.00028767,2]
[425975579,1782061907000,-2000.0,0.00028767,2]
[425975610,1782061907000,-500.0,0.00028767,2]
[425975612,1782061907000,-543.15,0.00028767,2]
[425975614,1782061907000,-6629.64,0.00028767,2]
[425975609,1782061907000,-500.0,0.00028767,2]
[425975615,1782061907000,-1025.57,0.00028767,2]
[425975617,1782061907000,-4853.13,0.00028767,2]
[425975618,1782061907000,-500.0,0.00028767,2]
[425975616,1782061907000,-781.73,0.00028767,2]
[425975608,1782061907000,-3268.54,0.00028767,2]
[425975630,1782061907000,-2370.42,0.00028819,2]
[425975620,1782061907000,-500.0,0.00028767,2]
[425975619,1782061907000,-500.0,0.00028767,2]
[425975622,1782061907000,-30000.0,0.00028767,2]
[425975631,1782061907000,-811.1,0.00028819,2]
[425975621,1782061907000,-500.0,0.00028767,2]
[425975626,1782061907000,-1850.65,0.000288,7]